bitfinex/quotes_BTCUSD_20240605
["timestamp","ask_amount","ask_price","bid_price","bid_amount"]
[1717624877266,0.0684,71124.0,71122.0,0.16026925]
[1717624878758,0.0694,71124.0,71122.0,0.16026925]
[1717624879844,0.0694,71124.0,71123.0,0.0795]
[1717624880095,0.943276,71151.0,71150.0,97.70908249]
[1717624880304,1.74373443,71151.0,71150.0,97.63614727]
[1717624880675,1.60165461,71151.0,71150.0,97.63614727]
[1717624880880,1.88274661,71151.0,71150.0,97.63614727]
[1717624881150,2.06759348,71151.0,71150.0,97.63614727]
[1717624881362,2.08432215,71151.0,71150.0,97.63614727]
[1717624881800,2.11232215,71151.0,71150.0,97.63614727]
[1717624882015,0.28115,71137.0,71126.0,0.07222824]
[1717624882234,0.16741893,71136.0,71130.0,0.43336945]
[1717624882443,0.0684,71131.0,71126.0,0.07222824]
[1717624882648,0.208993,71127.0,71126.0,0.07222824]
[1717624883207,0.208993,71127.0,71126.0,0.07322824]
[1717624883411,0.0684,71127.0,71126.0,0.07322824]
[1717624883810,0.0684,71127.0,71126.0,0.07222824]
[1717624884013,0.0684,71127.0,71126.0,0.07322824]
[1717624884225,0.0754,71127.0,71126.0,0.07322824]
[1717624884630,0.0824,71127.0,71126.0,0.07422824]
[1717624885456,0.0824,71127.0,71126.0,0.002]
[1717624886283,0.67891267,71151.0,71150.0,98.63576348]
[1717624886484,1.43575867,71151.0,71150.0,98.10679307]
[1717624886689,1.61811568,71151.0,71150.0,98.10679307]
[1717624887381,1.65854362,71151.0,71150.0,98.10679307]
[1717624887590,1.65854362,71151.0,71150.0,0.001]
[1717624887591,1.67254362,71151.0,71150.0,0.001]
[1717624887827,2.18347304,71151.0,71150.0,0.001]
[1717624888477,1.21466255,71151.0,71150.0,0.002]
[1717624888693,1.08566693,71151.0,71150.0,0.002]
[1717624889518,0.80457493,71151.0,71150.0,0.002]
[1717624889728,0.73617493,71151.0,71150.0,0.002]
[1717624889942,1.07166693,71151.0,71150.0,0.001]
[1717624890152,0.79057493,71151.0,71150.0,0.001]
[1717624890357,0.77657493,71151.0,71150.0,0.001]
[1717624890539,0.98926693,71151.0,71150.0,0.002]
[1717624890765,0.140563,71142.0,71141.0,0.2412]
[1717624890979,0.308963,71142.0,71141.0,0.2412]
[1717624893351,0.315963,71142.0,71141.0,0.2422]
[1717624893766,0.315963,71142.0,71141.0,0.2432]
[1717624897584,0.315963,71142.0,71141.0,0.002]
[1717624898011,0.3580418,71142.0,71141.0,0.002]
[1717624899110,0.35804282,71142.0,71141.0,0.002]
[1717624900619,0.315963,71142.0,71141.0,0.002]
[1717624901097,0.35804577,71142.0,71141.0,0.002]
[1717624901590,0.315963,71142.0,71141.0,0.002]
[1717624903135,0.33288703,71142.0,71141.0,0.002]
[1717624903515,0.39600676,71142.0,71141.0,0.002]
[1717624903993,0.33288703,71142.0,71141.0,0.002]
[1717624906087,0.33288703,71142.0,71141.0,0.00286]
[1717624906510,0.39600676,71142.0,71141.0,0.00286]
[1717624907151,0.32760676,71142.0,71141.0,0.00286]
[1717624907357,0.32760676,71142.0,71141.0,0.16146]
[1717624907566,0.39600676,71142.0,71141.0,0.16146]
[1717624908655,0.32760676,71142.0,71141.0,0.16146]
[1717624908864,0.39600676,71142.0,71141.0,0.16146]
[1717624911435,0.33288703,71142.0,71141.0,0.16146]
[1717624911636,0.26448703,71142.0,71141.0,0.16146]
[1717624911845,0.33288703,71142.0,71141.0,0.16146]
[1717624912834,0.26448703,71142.0,71141.0,0.16146]
[1717624912992,0.33288703,71142.0,71141.0,0.16146]
[1717624913814,0.26448703,71142.0,71141.0,0.16146]
[1717624914042,0.33288703,71142.0,71141.0,0.16146]
[1717624914465,0.41704667,71142.0,71141.0,0.16146]
[1717624917317,0.33288703,71142.0,71141.0,0.16146]
[1717624917763,0.26448703,71142.0,71141.0,0.16146]
[1717624918164,0.33288703,71142.0,71141.0,0.16146]
[1717624918369,0.26448703,71142.0,71141.0,0.16146]
[1717624918581,0.33288703,71142.0,71141.0,0.23826]
[1717624919469,0.20819115,71142.0,71141.0,0.23826]
[1717624919678,0.20819115,71142.0,71141.0,0.45826]
[1717624919679,0.10819115,71142.0,71141.0,0.45826]
[1717624919899,0.007,71142.0,71141.0,0.484086]
[1717624920419,0.007,71142.0,71141.0,0.504086]
[1717624920638,0.01660182,71147.0,71141.0,0.482086]
[1717624920844,0.01660182,71147.0,71143.0,0.2437]
[1717624921052,0.04307658,71150.0,71144.0,0.2437]
[1717624921260,0.04307658,71150.0,71148.0,0.08]
[1717624921888,0.11147658,71150.0,71148.0,0.08]
[1717624922110,0.06319587,71152.0,71150.0,99.930654]
[1717624922342,0.25104598,71151.0,71150.0,100.00466667]
[1717624923411,0.25103938,71151.0,71150.0,100.00466667]
[1717624923872,0.25203938,71151.0,71150.0,100.00566667]
[1717624924056,0.25803938,71151.0,71150.0,100.00666667]
[1717624924296,0.215946,71151.0,71150.0,100.00666667]
[1717624924511,0.25803946,71151.0,71150.0,100.00666667]
[1717624924943,0.215946,71151.0,71150.0,100.00666667]
[1717624925432,0.0754,71151.0,71150.0,100.23906667]
[1717624927595,0.007,71151.0,71150.0,100.23906667]
[1717624927778,0.0754,71151.0,71150.0,100.23906667]
[1717624927985,0.1,71184.0,71151.0,0.0799]
[1717624928128,0.1,71158.0,71152.0,0.0711052]
[1717624928336,0.0684,71153.0,71152.0,0.0711052]
[1717624929372,0.0684,71153.0,71152.0,0.0721052]
[1717624929779,0.0684,71153.0,71152.0,0.0711052]
[1717624930221,0.0764,71153.0,71152.0,0.0731052]
[1717624930425,0.0684,71153.0,71152.0,0.0731052]
[1717624933094,0.1,71157.0,71152.0,0.0731052]
[1717624933295,0.0684,71153.0,71152.0,0.0731052]
[1717624933932,0.0684,71153.0,71152.0,0.0711052]
[1717624934175,0.0684,71153.0,71152.0,0.0721052]
[1717624934860,0.0684,71153.0,71152.0,0.0731052]
[1717624935577,0.0684,71153.0,71152.0,0.0741052]
[1717624935952,0.0684,71153.0,71152.0,0.0731052]
[1717624936307,0.0684,71153.0,71152.0,0.0741052]
[1717624936739,0.013,71155.0,71152.0,0.0741052]
[1717624936935,0.0684,71153.0,71152.0,0.0741052]
[1717624937355,0.013,71155.0,71152.0,0.0741052]
[1717624937555,0.0684,71153.0,71152.0,0.0741052]
[1717624937703,0.1,71157.0,71152.0,0.0721052]
[1717624937970,0.0684,71153.0,71152.0,0.3023052]
[1717624938416,0.0684,71153.0,71152.0,0.3013052]
[1717624938823,0.0684,71153.0,71152.0,0.3023052]
[1717624939268,0.0684,71153.0,71152.0,0.3003052]
[1717624939473,0.0684,71153.0,71152.0,0.3013052]
[1717624939711,0.0684,71153.0,71152.0,0.3023052]
[1717624940585,0.0684,71153.0,71152.0,0.2312]
[1717624942114,0.1,71157.0,71152.0,0.2312]
[1717624942315,0.0684,71155.0,71152.0,0.2312]
[1717624942531,0.15041868,71158.0,71152.0,0.002]
[1717624942532,0.04204713,71158.0,71152.0,0.002]
[1717624942740,0.6970707,71160.0,71158.0,0.2311]
[1717624942741,0.04204713,71160.0,71158.0,0.2311]
[1717624942954,0.07327773,71162.0,71160.0,0.2368]
[1717624942955,0.05225416,71162.0,71160.0,0.2368]
[1717624943184,0.01020703,71162.0,71161.0,0.2368]
[1717624943395,0.01020703,71162.0,71161.0,0.43022882]
[1717624943610,0.01020703,71162.0,71161.0,1.03128082]
[1717624943816,0.00949301,71166.0,71164.0,0.36052]
[1717624944049,0.00949301,71166.0,71164.0,0.44572]
[1717624944297,0.00949301,71175.0,71174.0,0.2]
[1717624944508,0.00949301,71175.0,71174.0,0.5252]
[1717624944719,0.00949301,71175.0,71174.0,0.81461863]
[1717624944898,0.00949301,71175.0,71174.0,0.79461863]
[1717624945141,0.00949301,71175.0,71174.0,0.81461863]
[1717624945357,0.00949301,71175.0,71174.0,0.79461863]
[1717624945594,0.00949301,71175.0,71174.0,0.81461863]
[1717624946420,0.00949301,71175.0,71174.0,0.95903756]
[1717624946643,0.00949301,71175.0,71174.0,1.34003856]
[1717624949273,0.00086,71179.0,71178.0,1.076277]
[1717624949489,0.00086,71179.0,71178.0,1.66478716]
[1717624949690,0.00086,71179.0,71178.0,1.38380216]
[1717624949885,0.00086,71179.0,71178.0,1.37380216]
[1717624950085,0.00086,71179.0,71178.0,1.38380216]
[1717624950448,0.00086,71179.0,71178.0,1.37380216]
[1717624950894,0.00949301,71181.0,71178.0,1.37380216]
[1717624950895,0.00949301,71181.0,71180.0,0.521465]
[1717624951109,0.00949301,71181.0,71180.0,1.27960256]
[1717624951309,0.00949301,71183.0,71182.0,0.531453]
[1717624951513,0.00949301,71183.0,71182.0,1.34524093]
[1717624951738,0.00949301,71183.0,71182.0,1.58004093]
[1717624952374,0.00247588,71200.0,71188.0,0.560473]
[1717624952579,0.00247588,71200.0,71188.0,1.09125923]
[1717624953230,0.00247588,71200.0,71188.0,1.37220523]
[1717624953460,0.00247588,71200.0,71199.0,0.22]
[1717624953678,0.00247588,71200.0,71199.0,0.5318]
[1717624954308,0.00247588,71200.0,71199.0,0.603851]
[1717624954562,0.00247588,71200.0,71199.0,0.65670856]
[1717624955653,0.00247588,71200.0,71199.0,0.80112749]
[1717624955880,0.00247588,71200.0,71199.0,0.90112749]
[1717624956111,0.00247588,71200.0,71199.0,1.00212749]
[1717624956572,0.00247588,71200.0,71199.0,1.00312749]
[1717624958976,0.00247588,71200.0,71199.0,1.00212749]
[1717624959397,0.00247588,71200.0,71199.0,1.00112749]
[1717624959631,0.00247588,71200.0,71199.0,1.00212749]
[1717624961617,0.00247588,71200.0,71199.0,1.28302949]
[1717624964491,0.002,71209.0,71208.0,1.0847]
[1717624964768,0.002,71209.0,71208.0,1.65061417]
[1717624965213,0.002,71209.0,71208.0,1.58221417]
[1717624965431,0.002,71209.0,71208.0,1.65061417]
[1717624965871,0.002,71209.0,71208.0,1.65661417]
[1717624966086,0.002,71209.0,71208.0,1.70947173]
[1717624966320,0.002,71209.0,71208.0,2.14255859]
[1717624966545,0.002,71209.0,71208.0,2.14755859]
[1717624967628,0.00949301,71223.0,71222.0,0.776306]
[1717624967828,0.00949301,71223.0,71222.0,0.92072493]
[1717624968010,0.00949301,71223.0,71222.0,1.00149223]
[1717624968229,0.00949301,71223.0,71222.0,1.02149223]
[1717624972863,0.00949301,71223.0,71222.0,1.08989223]
[1717624974682,0.00949301,71223.0,71222.0,1.37070423]
[1717624976025,0.00949301,71223.0,71222.0,1.30230423]
[1717624976473,0.00949301,71223.0,71222.0,1.02149223]
[1717624977108,0.00949301,71223.0,71222.0,1.02149223]
[1717624978751,0.00949301,71223.0,71222.0,1.29230423]
[1717624978972,0.00949301,71223.0,71222.0,1.30230423]
[1717624979710,0.00949301,71223.0,71222.0,1.02149223]
[1717624980985,0.00949301,71223.0,71222.0,1.00149223]
[1717624981365,0.00949301,71223.0,71222.0,1.00649223]
[1717624981561,0.00949301,71223.0,71222.0,1.30730423]
[1717624981830,0.00949301,71223.0,71222.0,1.02449223]
[1717624981962,0.00949301,71223.0,71222.0,1.00449223]
[1717624982165,0.00949301,71223.0,71222.0,1.00649223]
[1717624984867,0.00949301,71223.0,71222.0,0.80649223]
[1717624985859,0.00949301,71223.0,71222.0,1.02649223]
[1717624986070,0.00949301,71223.0,71222.0,0.3261733]
[1717624986265,0.05939301,71223.0,71222.0,0.245406]
[1717624986903,0.00949301,71223.0,71222.0,0.245406]
[1717624987112,0.00949301,71223.0,71222.0,0.002]
[1717624987295,0.00949301,71223.0,71221.0,0.1]
[1717624987507,0.00949301,71223.0,71222.0,0.0410212]
[1717624987938,0.00949301,71223.0,71222.0,0.0400212]
[1717624990535,0.00949301,71223.0,71214.0,0.1]
[1717624990536,0.190306,71222.0,71214.0,0.1]
[1717624990729,0.258706,71222.0,71216.0,0.1]
[1717624991193,0.0248,71221.0,71216.0,0.1]
[1717624991523,0.0248,71221.0,71217.0,0.0240425]
[1717624992179,0.165208,71221.0,71217.0,0.0240425]
[1717624992601,0.140411,71220.0,71217.0,0.0240425]
[1717624992786,0.140411,71220.0,71218.0,0.1]
[1717624994439,0.140411,71220.0,71217.0,0.1]
[1717624994875,0.0248,71221.0,71217.0,0.1]
[1717624995331,0.0684,71219.0,71216.0,0.1]
[1717624995581,0.0684,71219.0,71217.0,0.11]
[1717624996107,0.0684,71219.0,71217.0,0.01]
[1717624997127,0.0684,71219.0,71217.0,0.011]
[1717624997363,0.49594,71218.0,71217.0,0.001]
[1717624997588,0.92118593,71218.0,71217.0,0.001]
[1717624997794,1.02118593,71218.0,71217.0,0.002]
[1717624998004,1.19198593,71218.0,71217.0,0.002]
[1717624998213,1.61521994,71218.0,71217.0,0.002]
[1717624998429,0.14028998,71195.0,71194.0,0.43336945]
[1717624998632,0.20868998,71195.0,71194.0,0.43336945]
[1717624998863,0.20868998,71195.0,71189.0,0.000946]
[1717624999073,0.20868998,71195.0,71191.0,0.00731742]
[1717624999074,0.14028998,71195.0,71191.0,0.00731742]
[1717624999244,0.0684,71192.0,71191.0,0.00731742]
[1717624999488,0.1411,71192.0,71191.0,0.00731742]
[1717625000314,0.1411,71192.0,71189.0,0.000946]
[1717625000315,0.140469,71190.0,71189.0,0.000946]
[1717625001992,0.141469,71190.0,71189.0,0.001946]
[1717625002192,0.141469,71190.0,71189.0,0.002946]
[1717625005070,0.001,71190.0,71189.0,0.363417]
[1717625005280,0.001,71190.0,71189.0,0.4197587]
[1717625006318,0.001,71190.0,71189.0,0.5970587]
[1717625006737,0.001,71190.0,71189.0,0.5960587]
[1717625006969,0.001,71190.0,71189.0,0.5970587]
[1717625007178,0.140445,71203.0,71189.0,0.5760587]
[1717625007390,0.140445,71203.0,71194.0,0.07222824]
[1717625008633,0.140445,71203.0,71194.0,0.07322824]
[1717625008842,0.001,71203.0,71202.0,0.07222824]
[1717625009021,0.001,71203.0,71199.0,0.2]
[1717625009226,0.001,71203.0,71200.0,0.0517457]
[1717625010225,0.1,71206.0,71200.0,0.2517457]
[1717625010665,0.001,71203.0,71200.0,0.2517457]
[1717625010865,0.1,71206.0,71200.0,0.2517457]
[1717625011089,0.1,71206.0,71200.0,0.2527457]
[1717625011293,0.001,71203.0,71201.0,0.04132017]
[1717625012111,0.11647091,71210.0,71201.0,0.04132017]
[1717625012313,0.1,71210.0,71201.0,0.04132017]
[1717625012492,0.24043,71210.0,71201.0,0.04132017]
[1717625013646,0.001,71206.0,71201.0,0.04132017]
[1717625014310,0.001,71206.0,71201.0,0.04232017]
[1717625014502,0.1,71208.0,71201.0,0.04132017]
[1717625014660,0.1,71208.0,71201.0,0.04232017]
[1717625014881,0.001,71206.0,71201.0,0.04332017]
[1717625015079,0.001,71206.0,71202.0,0.04055899]
[1717625015356,0.001,71206.0,71201.0,0.001]
[1717625015786,0.001,71206.0,71201.0,0.002]
[1717625016825,0.240433,71208.0,71201.0,0.001]
[1717625017033,0.241433,71208.0,71201.0,0.002]
[1717625017237,0.001,71208.0,71204.0,0.2]
[1717625017452,0.001,71208.0,71205.0,0.05657159]
[1717625017834,0.001,71206.0,71205.0,0.05657159]
[1717625018293,0.001,71206.0,71205.0,0.25657159]
[1717625018497,0.001,71206.0,71205.0,0.50929983]
[1717625018708,0.14041,71220.0,71205.0,0.50929983]
[1717625018709,0.14041,71220.0,71209.0,0.340429]
[1717625018914,0.14041,71220.0,71210.0,0.2]
[1717625019119,0.14041,71220.0,71211.0,0.2]
[1717625019519,0.4715,71222.0,71211.0,0.340427]
[1717625019693,0.611906,71222.0,71212.0,0.2]
[1717625019897,0.611906,71222.0,71211.0,0.140427]
[1717625019898,0.1,71221.0,71213.0,0.0360427]
[1717625020702,0.240408,71221.0,71213.0,0.0360427]
[1717625021310,0.241408,71221.0,71213.0,0.0370427]
[1717625021746,0.241408,71221.0,71213.0,0.002]
[1717625023949,0.0682,71214.0,71213.0,0.002]
[1717625025020,0.0682,71214.0,71213.0,0.001]
[1717625025512,0.0682,71214.0,71213.0,0.002]
[1717625025696,0.42573993,71214.0,71213.0,0.002]
[1717625025925,0.70658293,71214.0,71213.0,0.002]
[1717625026152,0.80658293,71214.0,71213.0,0.002]
[1717625026356,0.80658293,71214.0,71213.0,0.001]
[1717625026995,0.80758293,71214.0,71213.0,0.002]
[1717625027201,0.140443,71204.0,71194.0,0.07222824]
[1717625027407,0.0682,71196.0,71195.0,0.07460637]
[1717625027838,0.0682,71196.0,71194.0,0.07222824]
[1717625028050,0.140443,71203.0,71194.0,0.07222824]
[1717625028525,0.1705,71206.0,71194.0,0.07722824]
[1717625029183,0.140452,71199.0,71194.0,0.07222824]
[1717625029407,0.140444,71203.0,71195.0,0.01722282]
[1717625029629,0.140446,71202.0,71195.0,0.02222282]
[1717625030030,0.140446,71202.0,71195.0,0.01722282]
[1717625030273,0.140446,71202.0,71196.0,0.01894511]
[1717625030856,0.154446,71202.0,71196.0,0.01894511]
[1717625031601,0.160446,71202.0,71196.0,0.01894511]
[1717625032043,0.154446,71202.0,71196.0,0.01894511]
[1717625032443,0.160446,71202.0,71196.0,0.01994511]
[1717625032560,0.174446,71202.0,71197.0,0.01921734]
[1717625032761,0.034,71202.0,71200.0,0.2]
[1717625032979,0.034,71202.0,71201.0,0.612047]
[1717625033217,0.034,71202.0,71201.0,1.21625993]
[1717625033425,0.034,71202.0,71201.0,1.34066745]
[1717625033426,0.006,71202.0,71201.0,1.34066745]
[1717625033632,0.0562,71225.0,71218.0,0.01]
[1717625033842,0.0562,71225.0,71221.0,0.2]
[1717625034076,0.0562,71225.0,71215.0,0.1]
[1717625034077,0.2632,71222.0,71208.0,0.1]
[1717625034278,0.2632,71222.0,71207.0,0.0789]
[1717625034494,0.0562,71225.0,71212.0,0.07222824]
[1717625034720,0.140402,71224.0,71212.0,0.07222824]
[1717625034934,0.0562,71225.0,71212.0,0.07222824]
[1717625035146,0.01549301,71223.0,71221.0,0.001]
[1717625035814,0.00949301,71223.0,71212.0,0.07222824]
[1717625036273,0.00949301,71223.0,71221.0,0.001]
[1717625036274,0.140406,71222.0,71221.0,0.001]
[1717625036493,0.32514459,71222.0,71221.0,0.001]
[1717625036730,1.08108752,71222.0,71221.0,0.001]
[1717625036952,0.140445,71202.0,71195.0,0.1]
[1717625037167,0.140452,71199.0,71190.0,0.1]
[1717625037385,0.1705,71202.0,71194.0,0.05343155]
[1717625037595,0.0499,71206.0,71187.0,0.2516]
[1717625037596,0.140461,71194.0,71187.0,0.2516]
[1717625037822,0.1705,71196.0,71187.0,0.2516]
[1717625038236,0.04194089,71201.0,71187.0,0.2516]
[1717625038237,0.04194089,71202.0,71195.0,0.007]
[1717625038461,0.04194089,71202.0,71196.0,0.0147464]
[1717625038697,0.14194089,71203.0,71196.0,0.0147464]
[1717625038942,0.1,71203.0,71196.0,0.0147464]
[1717625039182,0.1,71203.0,71190.0,0.31664717]
[1717625039416,0.1,71203.0,71193.0,0.2]
[1717625039664,0.013,71202.0,71196.0,0.001]
[1717625039887,0.013,71202.0,71195.0,0.000946]
[1717625040330,0.013,71202.0,71201.0,0.360447]
[1717625040573,0.04194089,71216.0,71201.0,0.28046363]
[1717625040808,0.140431,71210.0,71201.0,0.1360447]
[1717625041047,0.04194089,71215.0,71209.0,0.07222824]
[1717625041254,0.18236089,71215.0,71210.0,0.00722282]
[1717625041471,0.14042,71215.0,71210.0,0.00722282]
[1717625041679,0.14042,71215.0,71205.0,0.2]
[1717625042109,0.14042,71215.0,71203.0,0.160442]
[1717625042110,0.14042,71215.0,71204.0,0.2]
[1717625042319,0.18236089,71215.0,71208.0,0.07222824]
[1717625042537,0.04194089,71216.0,71215.0,0.2]
[1717625042753,0.00086,71219.0,71216.0,0.2]
[1717625043411,0.140415,71218.0,71210.0,0.1]
[1717625043638,0.140415,71218.0,71209.0,0.02922282]
[1717625043639,0.140423,71214.0,71211.0,0.06289578]
[1717625043861,0.19431893,71213.0,71208.0,0.008]
[1717625044090,0.19431893,71213.0,71195.0,0.158246]
[1717625044091,0.1825,71210.0,71201.0,0.001]
[1717625044558,0.04194089,71207.0,71195.0,0.258246]
[1717625044822,0.04194089,71208.0,71196.0,0.09320815]
[1717625045037,0.04194089,71208.0,71196.0,0.19320815]
[1717625045254,0.04194089,71205.0,71196.0,0.09320815]
[1717625045489,0.140451,71199.0,71195.0,0.100946]
[1717625045707,0.04194089,71204.0,71198.0,0.07222824]
[1717625045950,0.04194089,71205.0,71198.0,0.07222824]
[1717625046156,0.152436,71207.0,71199.0,0.05346332]
[1717625047320,0.140436,71207.0,71199.0,0.05446332]
[1717625047527,0.012,71207.0,71206.0,0.14882824]
[1717625047743,0.012,71207.0,71200.0,0.05880966]
[1717625047959,0.012,71207.0,71195.0,0.100946]
[1717625048173,0.024,71207.0,71199.0,0.001]
[1717625048402,0.012,71204.0,71199.0,0.001]
[1717625048843,0.06594089,71207.0,71199.0,0.001]
[1717625049068,0.04194089,71202.0,71199.0,0.001]
[1717625049285,0.04194089,71201.0,71195.0,0.001946]
[1717625049497,0.18238789,71201.0,71200.0,0.001]
[1717625049714,0.140447,71201.0,71200.0,0.001]
[1717625049931,0.04194089,71202.0,71195.0,0.001946]
[1717625049932,0.140457,71196.0,71195.0,0.001946]
[1717625050542,0.140457,71196.0,71195.0,0.000946]
[1717625051205,0.152457,71196.0,71195.0,0.001946]
[1717625051844,0.164457,71196.0,71195.0,0.002946]
[1717625052269,0.152457,71196.0,71195.0,0.001946]
[1717625052632,0.140457,71196.0,71195.0,0.000946]
[1717625052833,0.152457,71196.0,71195.0,0.001946]
[1717625053237,0.152457,71196.0,71195.0,0.000946]
[1717625053636,0.164457,71196.0,71195.0,0.001946]
[1717625053903,0.176457,71196.0,71195.0,0.002946]
[1717625055085,0.036,71196.0,71195.0,0.002946]
[1717625055289,0.036,71196.0,71195.0,0.222946]
[1717625055525,0.036,71196.0,71195.0,0.5515996]
[1717625056349,0.012,71196.0,71195.0,0.5505996]
[1717625056721,0.024,71196.0,71195.0,0.5515996]
[1717625056923,0.1,71206.0,71195.0,0.5495996]
[1717625057191,0.1,71206.0,71196.0,0.2]
[1717625057351,0.1,71206.0,71197.0,0.28246996]
[1717625057582,0.1,71206.0,71200.0,0.2]
[1717625057715,0.1,71206.0,71201.0,0.2]
[1717625057926,0.1,71206.0,71200.0,0.2]
[1717625058131,0.011,71206.0,71200.0,0.2]
[1717625058371,0.011,71206.0,71199.0,0.02]
[1717625058372,0.011,71206.0,71204.0,0.2]
[1717625058584,0.4715,71207.0,71205.0,0.0781]
[1717625058765,0.4715,71207.0,71206.0,0.3858]
[1717625059446,0.47133096,71207.0,71206.0,0.3858]
[1717625060883,0.017,71207.0,71206.0,0.3868]
[1717625061096,0.017,71207.0,71206.0,0.4190946]
[1717625061289,0.006,71207.0,71206.0,0.4190946]
[1717625061650,0.013,71207.0,71206.0,0.4200946]
[1717625064391,0.013,71207.0,71206.0,0.4000946]
[1717625064607,0.013,71207.0,71206.0,0.4200946]
[1717625067692,0.013,71207.0,71206.0,0.2000946]
[1717625068112,0.013,71207.0,71206.0,0.0342946]
[1717625069751,0.013,71207.0,71206.0,0.2542946]
[1717625069985,0.013,71207.0,71206.0,0.4972946]
[1717625070830,0.013,71207.0,71206.0,0.4772946]
[1717625071695,0.013,71207.0,71206.0,0.2772946]
[1717625072897,0.013,71207.0,71206.0,0.4772946]
[1717625074235,0.013,71207.0,71206.0,0.4782406]
[1717625074445,0.01386,71207.0,71206.0,0.4782406]
[1717625074807,0.01386,71207.0,71206.0,0.2782406]
[1717625076937,0.01386,71207.0,71206.0,0.0352406]
[1717625081272,0.01386,71207.0,71206.0,0.002946]
[1717625085891,0.154295,71207.0,71206.0,0.002946]
[1717625086588,0.19631954,71207.0,71206.0,0.002946]
[1717625087697,0.19632035,71207.0,71206.0,0.002946]
[1717625088514,0.154295,71207.0,71206.0,0.002946]
[1717625088716,0.21731034,71207.0,71206.0,0.002946]
[1717625089392,0.154295,71207.0,71206.0,0.002946]
[1717625089598,0.46539627,71207.0,71206.0,0.002946]
[1717625089806,0.154295,71207.0,71206.0,0.002946]
[1717625090230,0.46539647,71207.0,71206.0,0.002946]
[1717625092989,0.154295,71207.0,71206.0,0.002946]
[1717625093196,0.54946132,71207.0,71206.0,0.002946]
[1717625093397,0.46539301,71207.0,71206.0,0.002946]
[1717625095884,0.63861858,71207.0,71206.0,0.002946]
[1717625096160,0.8002657,71207.0,71206.0,0.002946]
[1717625096378,0.69524013,71207.0,71206.0,0.002946]
[1717625097656,0.68224013,71207.0,71206.0,0.000946]
[1717625098065,0.69624013,71207.0,71206.0,0.001946]
[1717625098692,0.80135225,71207.0,71206.0,0.001946]
[1717625098903,0.81235225,71207.0,71206.0,0.002946]
[1717625099535,0.70724013,71207.0,71206.0,0.002946]
[1717625099960,0.80954013,71207.0,71206.0,0.002946]
[1717625101083,0.90224013,71207.0,71206.0,0.002946]
[1717625101775,0.90225829,71207.0,71206.0,0.002946]
[1717625101986,0.9022583,71207.0,71206.0,0.002946]
[1717625103527,0.9022583,71207.0,71206.0,0.228646]
[1717625103528,0.3541999,71207.0,71206.0,0.228646]
[1717625103749,0.44210476,71207.0,71206.0,0.4715106]
[1717625103986,0.06790934,71207.0,71206.0,0.2515106]
[1717625104206,0.02586,71207.0,71206.0,0.2515106]
[1717625104432,0.02586,71207.0,71206.0,0.4715106]
[1717625104642,0.02586,71207.0,71206.0,0.8119476]
[1717625104821,0.01486,71207.0,71206.0,0.8109476]
[1717625104975,0.00086,71207.0,71206.0,0.8129476]
[1717625105403,0.01486,71207.0,71206.0,0.8109476]
[1717625105965,0.00086,71207.0,71206.0,0.8099476]
[1717625106271,0.00086,71207.0,71206.0,0.8119476]
[1717625106840,0.00086,71207.0,71206.0,0.8149476]
[1717625107250,0.00086,71207.0,71206.0,0.8119476]
[1717625107463,0.00086,71207.0,71206.0,0.8149476]
[1717625108096,0.00086,71207.0,71206.0,0.95936653]
[1717625108293,0.00086,71207.0,71206.0,0.96936653]
[1717625108503,0.47133096,71222.0,71217.0,0.591915]
[1717625108707,0.00949301,71223.0,71217.0,0.6711065]
[1717625109945,0.001,71218.0,71217.0,0.6821065]
[1717625110371,0.001,71218.0,71217.0,1.02652543]
[1717625110588,0.014,71218.0,71217.0,1.02752543]
[1717625110802,0.001,71218.0,71217.0,1.02652543]
[1717625111209,0.001,71218.0,71217.0,1.03052543]
[1717625111430,0.00949301,71223.0,71218.0,0.460413]
[1717625111649,0.00949301,71223.0,71218.0,0.74778176]
[1717625112931,0.00949301,71223.0,71218.0,0.96910069]
[1717625113323,0.00949301,71223.0,71218.0,0.97910069]
[1717625114039,0.00186,71219.0,71218.0,0.99510069]
[1717625114254,0.00186,71219.0,71218.0,0.97410069]
[1717625114675,0.00186,71219.0,71218.0,0.98410069]
[1717625114884,0.00286,71219.0,71218.0,0.99510069]
[1717625115091,0.00186,71219.0,71218.0,0.98410069]
[1717625115299,0.00186,71219.0,71218.0,0.96910069]
[1717625115752,0.00286,71219.0,71218.0,0.97810069]
[1717625116184,0.00286,71219.0,71218.0,0.98810069]
[1717625116390,0.00286,71219.0,71218.0,1.26892769]
[1717625116640,0.00286,71219.0,71218.0,1.27092769]
[1717625116889,0.00186,71219.0,71218.0,1.25992769]
[1717625117099,0.00186,71219.0,71218.0,1.27692769]
[1717625117100,0.00286,71219.0,71218.0,1.27692769]
[1717625117306,0.00386,71219.0,71218.0,1.27692769]
[1717625117511,0.00286,71219.0,71218.0,1.54875469]
[1717625117730,0.00386,71219.0,71218.0,1.55975469]
[1717625118077,0.00186,71219.0,71218.0,1.25792769]
[1717625118287,0.00086,71219.0,71218.0,1.25892769]
[1717625118613,0.00186,71219.0,71218.0,1.25892769]
[1717625119001,0.00286,71219.0,71218.0,1.26792769]
[1717625119406,0.00186,71219.0,71218.0,1.25892769]
[1717625119665,0.00286,71219.0,71218.0,1.26692769]
[1717625120282,0.00286,71219.0,71218.0,1.27692769]
[1717625121744,0.00286,71219.0,71218.0,1.26692769]
[1717625122203,0.00286,71219.0,71218.0,0.96610069]
[1717625122413,0.00286,71219.0,71218.0,0.98610069]
[1717625127208,0.00286,71219.0,71218.0,0.28898176]
[1717625127416,0.00286,71219.0,71218.0,0.14856876]
[1717625127935,0.04566,71219.0,71218.0,0.017]
[1717625128135,0.00186,71219.0,71218.0,0.008]
[1717625128386,0.00086,71219.0,71214.0,0.1]
[1717625128586,0.00186,71219.0,71218.0,0.009]